bitfinex/quotes_BTCUSD_20250523
["timestamp","ask_amount","ask_price","bid_price","bid_amount"]
[1747969000241,0.1909677,111130.0,111120.0,1.8468]
[1747969000481,0.1909677,111130.0,111120.0,1.93632151]
[1747969001560,0.2224677,111130.0,111120.0,1.93632151]
[1747969002170,0.2224677,111130.0,111120.0,1.94510956]
[1747969004666,0.2224677,111130.0,111120.0,2.33342956]
[1747969006733,0.1909677,111130.0,111120.0,2.33342956]
[1747969008924,0.2228677,111130.0,111120.0,1.96544]
[1747969009129,0.2228677,111130.0,111120.0,2.23512]
[1747969009367,0.2228677,111130.0,111120.0,1.49212]
[1747969009571,0.2228677,111130.0,111120.0,2.23516]
[1747969009772,0.2228677,111130.0,111120.0,1.20672]
[1747969009974,0.31241326,111130.0,111120.0,0.82284151]
[1747969010192,0.31241326,111130.0,111120.0,1.56592151]
[1747969010625,0.31241326,111130.0,111120.0,1.4764]
[1747969010822,0.31241326,111130.0,111120.0,1.20672]
[1747969011022,0.31241326,111130.0,111120.0,1.4764]
[1747969011482,0.31241326,111130.0,111120.0,0.73332]
[1747969011693,0.31241326,111130.0,111120.0,1.4764]
[1747969011935,0.31241326,111130.0,111120.0,1.19691125]
[1747969012163,0.31241326,111130.0,111120.0,1.1364]
[1747969012620,0.31241326,111130.0,111120.0,0.39332]
[1747969012840,0.31241326,111130.0,111120.0,1.1364]
[1747969013059,0.31241326,111130.0,111120.0,0.39332]
[1747969013511,0.31241326,111130.0,111120.0,1.1364]
[1747969013742,0.31241326,111130.0,111120.0,1.47644]
[1747969015100,0.31241326,111130.0,111120.0,1.48524624]
[1747969015964,0.31241326,111130.0,111120.0,0.74212624]
[1747969016183,0.31241326,111130.0,111120.0,1.49072624]
[1747969016583,0.31241326,111130.0,111120.0,1.15072624]
[1747969016810,0.31241326,111130.0,111120.0,1.21289964]
[1747969017058,0.31241326,111130.0,111120.0,1.22727824]
[1747969017920,0.31241326,111130.0,111120.0,1.16510484]
[1747969019142,0.31241326,111130.0,111120.0,1.1562986]
[1747969020178,0.31241326,111130.0,111120.0,0.8865786]
[1747969020332,0.31241326,111130.0,111120.0,1.1562986]
[1747969024818,0.31241326,111130.0,111120.0,1.16525764]
[1747969025029,0.31241326,111130.0,111120.0,1.24582011]
[1747969030938,0.2228677,111130.0,111120.0,5.66265311]
[1747969031147,0.19996592,111130.0,111120.0,5.67805311]
[1747969031361,0.19996592,111130.0,111120.0,5.66265311]
[1747969031591,0.23206592,111130.0,111120.0,5.39297311]
[1747969031794,0.23206592,111130.0,111120.0,3.80076011]
[1747969032021,0.23206592,111130.0,111120.0,3.53104011]
[1747969032298,0.32161148,111130.0,111120.0,3.05212011]
[1747969032537,0.32161148,111130.0,111120.0,1.4963386]
[1747969034068,0.32161148,111130.0,111120.0,0.4076986]
[1747969034293,0.32161148,111130.0,111120.0,1.1563386]
[1747969034510,0.32161148,111130.0,111120.0,1.14196]
[1747969034734,0.33615233,111130.0,111120.0,1.14196]
[1747969035874,0.33615233,111130.0,111120.0,1.23148151]
[1747969036334,0.40830566,111130.0,111120.0,0.87224]
[1747969036550,0.33615233,111130.0,111120.0,1.14196]
[1747969037193,0.33615233,111130.0,111120.0,1.13896]
[1747969037469,0.33515233,111130.0,111120.0,1.13896]
[1747969037672,0.33515233,111130.0,111120.0,1.48096]
[1747969038349,0.33515233,111130.0,111120.0,1.57048151]
[1747969038556,0.33415233,111130.0,111120.0,1.57048151]
[1747969038793,0.33515233,111130.0,111120.0,1.57048151]
[1747969039006,0.33515233,111130.0,111120.0,1.48096]
[1747969039809,0.33515233,111130.0,111120.0,1.21124]
[1747969040051,0.33515233,111130.0,111120.0,1.48096]
[1747969040286,0.33515233,111130.0,111120.0,1.21124]
[1747969040513,0.33505209,111130.0,111120.0,1.57048151]
[1747969041459,0.32051124,111130.0,111120.0,1.57048151]
[1747969041947,0.32051124,111130.0,111120.0,0.82184151]
[1747969042183,0.32051124,111130.0,111120.0,1.57048151]
[1747969046149,0.32051124,111130.0,111120.0,1.58126367]
[1747969051999,0.19886568,111130.0,111120.0,4.78386367]
[1747969053072,0.23056568,111130.0,111120.0,1.24182011]
[1747969053281,0.32011124,111130.0,111120.0,2.00422011]
[1747969053498,0.32011124,111130.0,111120.0,1.59862011]
[1747969053701,0.32011124,111130.0,111120.0,0.83622011]
[1747969053912,0.32011124,111130.0,111120.0,1.59862011]
[1747969057617,0.32011124,111130.0,111120.0,1.25466011]
[1747969058165,0.32011124,111130.0,111120.0,1.25106105]
[1747969061691,0.32011124,111130.0,111120.0,0.48866105]
[1747969062026,0.32011124,111130.0,111120.0,1.16153954]
[1747969064770,0.32011124,111130.0,111120.0,0.89181954]
[1747969064987,0.32011124,111130.0,111120.0,0.87729954]
[1747969065199,0.32011124,111130.0,111120.0,1.14701954]
[1747969072136,0.19886568,111130.0,111120.0,5.22385254]
[1747969072422,0.19886568,111130.0,111120.0,4.04181954]
[1747969072548,0.19886568,111130.0,111120.0,3.63731954]
[1747969072766,0.19886568,111130.0,111120.0,1.28811954]
[1747969073134,0.19886568,111130.0,111120.0,1.14701954]
[1747969073340,0.23056568,111130.0,111120.0,1.14701954]
[1747969073548,0.32011124,111130.0,111120.0,1.14701954]
[1747969073820,0.32011124,111130.0,111120.0,1.24014011]
[1747969076657,0.32011124,111130.0,111120.0,0.49226011]
[1747969076872,0.32011124,111130.0,111120.0,1.24014011]
[1747969080793,0.32011124,111130.0,111120.0,1.1506186]
[1747969080987,0.19886568,111130.0,111120.0,5.2274516]
[1747969081785,0.19886568,111130.0,111120.0,5.2434516]
[1747969083631,0.001,111130.0,111120.0,5.46723405]
[1747969083861,0.001,111130.0,111120.0,5.55677961]
[1747969084119,0.00999774,111130.0,111120.0,5.64630112]
[1747969084520,0.21696132,111130.0,111120.0,5.53337825]
[1747969084730,0.03699192,111130.0,111120.0,5.54237696]
[1747969085061,0.02799362,111130.0,111120.0,5.54237696]
[1747969085262,0.03699192,111130.0,111120.0,5.54237696]
[1747969086314,0.02799362,111130.0,111120.0,5.54237696]
[1747969087130,0.03699192,111130.0,111120.0,5.54237696]
[1747969087727,0.001,111130.0,111120.0,5.54237696]
[1747969087993,0.00999774,111130.0,111120.0,5.54237696]
[1747969088181,0.00999774,111130.0,111120.0,5.63192252]
[1747969088182,0.001,111130.0,111120.0,5.63192252]
[1747969088788,0.00999774,111130.0,111120.0,5.63192252]
[1747969089148,0.03598924,111140.0,111130.0,0.23976407]
[1747969089354,0.03598924,111140.0,111130.0,4.40611858]
[1747969090147,0.03598924,111140.0,111130.0,4.41511648]
[1747969090319,0.03698924,111140.0,111130.0,4.44210248]
[1747969090757,0.03698924,111140.0,111130.0,4.45645395]
[1747969091829,0.21261243,111160.0,111140.0,0.2407452]
[1747969092044,0.18001243,111160.0,111150.0,4.83573853]
[1747969092252,0.00908691,111160.0,111150.0,5.05671603]
[1747969092456,0.0180823,111160.0,111150.0,5.10119703]
[1747969092669,0.03607413,111160.0,111150.0,5.10119703]
[1747969092881,0.21599528,111160.0,111150.0,5.10119719]
[1747969093146,0.20799989,111160.0,111150.0,5.15522582]
[1747969093351,0.20100426,111160.0,111150.0,4.94999212]
[1747969093560,0.19100847,111160.0,111150.0,4.94999212]
[1747969093772,0.19100847,111160.0,111150.0,4.95898889]
[1747969094134,0.19100847,111160.0,111150.0,5.16227398]
[1747969094754,0.19100847,111160.0,111150.0,5.49327738]
[1747969094937,0.18900847,111160.0,111150.0,5.49327738]
[1747969095446,0.19000847,111160.0,111150.0,5.30534359]
[1747969096058,0.19000847,111160.0,111150.0,5.30173392]
[1747969096609,0.19000847,111160.0,111150.0,5.31073069]
[1747969097576,0.18101243,111160.0,111150.0,5.30173392]
[1747969097933,0.21481243,111160.0,111150.0,3.89250431]
[1747969098458,0.21481243,111160.0,111150.0,3.85540431]
[1747969099356,0.21481243,111160.0,111150.0,3.76710431]
[1747969100234,0.21481243,111160.0,111150.0,3.67120431]
[1747969101606,0.21481243,111160.0,111150.0,2.57452431]
[1747969101820,0.21481243,111160.0,111150.0,2.0324028]
[1747969102020,0.21481243,111160.0,111150.0,2.1074428]
[1747969102443,0.21481243,111160.0,111150.0,2.0804618]
[1747969102860,0.30435799,111160.0,111150.0,1.7346218]
[1747969103065,0.31889884,111160.0,111150.0,0.80808379]
[1747969103281,0.31889884,111160.0,111150.0,0.53844379]
[1747969103484,0.31889884,111160.0,111150.0,0.80808379]
[1747969103685,0.31889884,111160.0,111150.0,0.7536218]
[1747969104316,0.31889884,111160.0,111150.0,0.74288]
[1747969105356,0.31889884,111160.0,111150.0,0.001]
[1747969105573,0.31889884,111160.0,111150.0,0.27064]
[1747969105797,0.31889884,111160.0,111150.0,0.028064]
[1747969106429,0.31889884,111160.0,111150.0,0.001]
[1747969110545,0.30435799,111160.0,111150.0,0.001]
[1747969110748,0.18895656,111140.0,111120.0,0.0154]
[1747969110957,0.19795422,111140.0,111130.0,4.89136234]
[1747969111099,0.19795422,111140.0,111130.0,4.889113]
[1747969111307,0.19795422,111140.0,111130.0,5.00423298]
[1747969111508,0.19795422,111140.0,111130.0,4.99523451]
[1747969112100,0.19795422,111140.0,111130.0,5.27391298]
[1747969112309,0.19895422,111140.0,111130.0,5.31289936]
[1747969112482,0.01899507,111140.0,111130.0,5.5018669]
[1747969113115,0.01999507,111140.0,111130.0,5.5018669]
[1747969113537,0.01899507,111140.0,111130.0,5.5018669]
[1747969113815,0.01899507,111140.0,111130.0,5.5240087]
[1747969114020,0.01999507,111140.0,111130.0,5.5260087]
[1747969114279,0.19994828,111140.0,111130.0,5.5260087]
[1747969114489,0.19994828,111140.0,111130.0,5.52600878]
[1747969114901,0.19994828,111140.0,111130.0,5.29104431]
[1747969114902,0.18195321,111140.0,111130.0,5.29104431]
[1747969115108,0.19805321,111140.0,111130.0,5.28030251]
[1747969115225,0.19805321,111140.0,111130.0,5.66862251]
[1747969118059,0.18195321,111140.0,111130.0,5.66862251]
[1747969118670,0.18195321,111140.0,111130.0,5.6793719]
[1747969118891,0.18195321,111140.0,111130.0,5.68837037]
[1747969119248,0.002,111140.0,111130.0,5.89533411]
[1747969119448,0.01999506,111140.0,111130.0,5.92283411]
[1747969119827,0.03799005,111140.0,111130.0,5.92283427]
[1747969120386,0.03799005,111140.0,111130.0,5.91208488]
[1747969120797,0.02899239,111140.0,111130.0,5.92108278]
[1747969121009,0.02899239,111140.0,111130.0,5.91208488]
[1747969121821,0.02899239,111140.0,111130.0,5.92108278]
[1747969122224,0.03799005,111140.0,111130.0,5.92108278]
[1747969122505,0.01999442,111140.0,111130.0,5.92108278]
[1747969122711,0.02899191,111140.0,111130.0,5.92108278]
[1747969123288,0.03798948,111140.0,111130.0,5.92108278]
[1747969123905,0.02899191,111140.0,111130.0,5.92108278]
[1747969124098,0.03798948,111140.0,111130.0,5.92108278]
[1747969124614,0.03798948,111140.0,111130.0,5.90968278]
[1747969124824,0.02899191,111140.0,111130.0,5.90968278]
[1747969125104,0.02899191,111140.0,111130.0,5.92108278]
[1747969125332,0.03798948,111140.0,111130.0,5.92108278]
[1747969125546,0.03798948,111140.0,111130.0,5.90968278]
[1747969125956,0.03798948,111140.0,111130.0,5.90968286]
[1747969126154,0.04698714,111140.0,111130.0,5.90968286]
[1747969126488,0.04698714,111140.0,111130.0,5.90968229]
[1747969127496,0.03798948,111140.0,111130.0,5.90968229]
[1747969128090,0.04698714,111140.0,111130.0,5.90968229]
[1747969128289,0.01999442,111140.0,111130.0,6.01062785]
[1747969128703,0.02899191,111140.0,111130.0,6.01062785]
[1747969129458,0.19994827,111140.0,111130.0,5.66858251]
[1747969129658,0.21714827,111140.0,111130.0,5.66858251]
[1747969130009,0.21714827,111140.0,111130.0,5.86654868]
[1747969132322,0.21714827,111140.0,111130.0,5.8755469]
[1747969132710,0.19994827,111140.0,111130.0,5.8755469]
[1747969132911,0.19994827,111140.0,111130.0,5.88454504]
[1747969134064,0.19994827,111140.0,111130.0,5.8935431]
[1747969134877,0.01999474,111140.0,111130.0,5.8935431]
[1747969135205,0.03798892,111140.0,111130.0,5.90904253]
[1747969135946,0.02899143,111140.0,111130.0,5.90904253]
[1747969136154,0.02899135,111140.0,111130.0,5.90904253]
[1747969136357,0.03798876,111140.0,111130.0,5.89354253]
[1747969137419,0.02899135,111140.0,111130.0,5.89354253]
[1747969137689,0.002,111140.0,111130.0,5.91044253]
[1747969137889,0.0192,111150.0,111140.0,0.5469452]
[1747969137890,0.0289894,111150.0,111140.0,0.5469452]
[1747969138217,0.03798625,111150.0,111140.0,4.70430262]
[1747969138386,0.03798617,111150.0,111140.0,4.72229704]
[1747969138662,0.0289894,111150.0,111140.0,4.73129413]
[1747969139115,0.03798617,111150.0,111140.0,4.72229704]
[1747969139488,0.04698302,111150.0,111140.0,4.72229704]
[1747969139710,0.06288302,111150.0,111140.0,4.72229704]
[1747969139922,0.06388302,111150.0,111140.0,4.72329704]
[1747969140291,0.05488674,111150.0,111140.0,4.72329704]
[1747969140694,0.05488674,111150.0,111140.0,4.73229413]
[1747969140966,0.03689312,111150.0,111140.0,4.73429413]
[1747969141148,0.02998916,111150.0,111140.0,4.73429413]
[1747969141350,0.04798261,111150.0,111140.0,4.73429413]
[1747969141775,0.02998916,111150.0,111140.0,4.73429413]
[1747969141934,0.02099256,111150.0,111140.0,4.75019413]
[1747969142136,0.003,111150.0,111140.0,4.75019413]
[1747969142344,0.003,111150.0,111140.0,4.84913969]
[1747969143500,0.003,111150.0,111140.0,4.87763289]
[1747969152675,0.003,111150.0,111140.0,4.86823289]
[1747969152887,0.003,111150.0,111140.0,4.89521089]
[1747969153096,0.003,111150.0,111140.0,5.16481089]
[1747969156214,0.003,111150.0,111140.0,5.14891089]
[1747969156729,0.003,111150.0,111140.0,5.16601089]
[1747969158643,0.02528699,111160.0,111150.0,0.54692659]
[1747969158849,9.16e-05,111160.0,111150.0,4.80282666]
[1747969159053,0.03678908,111170.0,111160.0,0.20690797]
[1747969159255,0.04578382,111170.0,111160.0,5.08648653]
[1747969159608,0.03678908,111170.0,111160.0,5.08648653]
[1747969159821,0.0277945,111170.0,111160.0,5.17600804]
[1747969160020,0.03678916,111170.0,111160.0,5.17600804]
[1747969160220,0.0188,111170.0,111160.0,5.20298404]
[1747969160785,0.0188,111170.0,111160.0,5.20398404]
[1747969160984,0.0188,111170.0,111160.0,5.20498404]
[1747969161424,0.002,111170.0,111160.0,5.20498404]
[1747969161792,0.0176,111170.0,111160.0,5.20498404]
[1747969163799,0.0265945,111170.0,111160.0,5.20498404]
[1747969163996,0.0435945,111170.0,111160.0,5.20498404]
[1747969164403,0.05258916,111170.0,111160.0,5.20498404]
[1747969164724,0.07957403,111170.0,111160.0,5.20498404]
[1747969164951,0.07057896,111170.0,111160.0,5.20498404]
[1747969165476,0.07057905,111170.0,111160.0,5.20498404]
[1747969166351,0.06158398,111170.0,111160.0,5.20498404]
[1747969166581,0.07057896,111170.0,111160.0,5.20498404]
[1747969166927,0.05258924,111170.0,111160.0,5.20498404]
[1747969167754,0.06158414,111170.0,111160.0,5.54498404]
[1747969167924,0.05258924,111170.0,111160.0,5.54498404]
[1747969168127,0.06158406,111170.0,111160.0,5.54498404]
[1747969169196,0.05258924,111170.0,111160.0,5.54498404]
[1747969169485,0.06158414,111170.0,111160.0,5.57347724]
[1747969170714,0.07057921,111170.0,111160.0,5.57347724]
[1747969170915,0.06158414,111170.0,111160.0,5.57347724]
[1747969171368,0.07057921,111170.0,111160.0,5.57347724]
[1747969171568,0.07057921,111170.0,111160.0,5.96163724]
[1747969171730,0.06158414,111170.0,111160.0,5.96163724]
[1747969171925,0.07057921,111170.0,111160.0,5.96163724]
[1747969172131,0.06154014,111170.0,111160.0,5.96163724]
[1747969174083,0.05254524,111170.0,111160.0,5.96163724]
[1747969174322,0.001956,111170.0,111160.0,5.97843724]
[1747969174542,0.001956,111170.0,111160.0,5.96163724]
[1747969174948,0.018056,111170.0,111160.0,5.96163724]
[1747969175153,0.018056,111170.0,111160.0,5.93314404]
[1747969179660,0.04375066,111170.0,111160.0,5.85255403]
[1747969180027,0.05274548,111170.0,111160.0,5.60773357]
[1747969180224,0.018056,111170.0,111160.0,5.80564703]
[1747969180429,0.0270505,111170.0,111160.0,5.89519259]
[1747969180630,0.018056,111170.0,111160.0,5.89519259]
[1747969181879,0.05314532,111170.0,111160.0,5.79665148]
[1747969182083,0.035156,111170.0,111160.0,5.88619704]
[1747969182684,0.018056,111170.0,111160.0,5.88619704]
[1747969183421,0.018056,111170.0,111160.0,5.87151704]
[1747969184044,0.001956,111170.0,111160.0,5.87151704]
[1747969185637,0.019356,111170.0,111160.0,5.87151704]
[1747969185989,0.001956,111170.0,111160.0,5.87151704]
[1747969186442,0.018656,111170.0,111160.0,5.87151704]
[1747969189203,1e-08,111170.0,111160.0,5.87151704]
[1747969189931,0.0260537,111180.0,111170.0,0.54688936]
[1747969190128,0.0260537,111180.0,111170.0,4.66633687]
[1747969190551,0.0260537,111180.0,111170.0,4.69331087]
[1747969191153,0.0270537,111180.0,111170.0,4.69331087]
[1747969191634,0.03604755,111180.0,111170.0,4.69331087]
[1747969191865,0.0270537,111180.0,111170.0,4.69331087]
[1747969192067,0.0280537,111180.0,111170.0,4.69331087]
[1747969192895,0.0451537,111180.0,111170.0,4.69331087]
[1747969193887,0.0451537,111180.0,111170.0,4.96287087]
[1747969194310,0.05414747,111180.0,111170.0,4.96287087]
[1747969194726,0.06314132,111180.0,111170.0,4.96287087]
[1747969195077,0.07213533,111180.0,111170.0,4.69331087]
[1747969195288,0.06314164,111180.0,111170.0,4.97186569]
[1747969195676,0.06314164,111180.0,111170.0,4.70230569]
[1747969195880,0.06314164,111180.0,111170.0,5.40074569]
[1747969197499,0.07213582,111180.0,111170.0,5.40074569]
[1747969197700,0.06314164,111180.0,111170.0,5.40074569]
[1747969197898,0.05414763,111180.0,111170.0,5.40074569]
[1747969198525,0.06314164,111180.0,111170.0,5.40074569]
[1747969198932,0.07314164,111180.0,111170.0,5.40074569]
[1747969199189,0.06414763,111180.0,111170.0,5.40074569]
[1747969199402,0.05515378,111180.0,111170.0,5.40074569]
[1747969199607,0.06414771,111180.0,111170.0,5.40074569]
[1747969200014,0.07314172,111180.0,111170.0,5.42946089]
[1747969200245,0.06414771,111180.0,111170.0,5.42946089]
[1747969201367,0.08213598,111180.0,111170.0,5.42946089]
[1747969202477,0.25303067,111180.0,111170.0,5.21357671]
[1747969202681,0.24403674,111180.0,111170.0,5.41147157]
[1747969203395,0.24403674,111180.0,111170.0,5.80858647]
[1747969203623,0.06414828,111180.0,111170.0,5.81758113]
[1747969203751,0.08213704,111180.0,111170.0,5.81758113]
[1747969203966,0.08213704,111180.0,111170.0,5.81758129]
[1747969205676,0.07314303,111180.0,111170.0,5.81758129]
[1747969206615,0.25303149,111180.0,111170.0,5.81758129]
[1747969206984,0.07314303,111180.0,111170.0,5.12813595]
[1747969207187,0.0641482,111180.0,111170.0,5.82657595]
[1747969207645,0.08213623,111180.0,111170.0,5.82657595]
[1747969208360,0.09113057,111180.0,111170.0,5.82657595]
[1747969209208,0.09113122,111180.0,111170.0,5.82657603]
[1747969209951,0.09113122,111180.0,111170.0,5.82381603]
[1747969210364,0.09113122,111180.0,111170.0,5.82381546]
[1747969211458,0.0641482,111180.0,111170.0,5.82381546]
[1747969211668,0.0821368,111180.0,111170.0,5.82381546]
[1747969213990,0.0641482,111180.0,111170.0,5.82381546]
[1747969214661,0.0641482,111180.0,111170.0,5.12813546]
[1747969214882,0.07314246,111180.0,111170.0,5.82381546]
[1747969215095,0.0641482,111180.0,111170.0,5.82381546]
[1747969215973,0.07314188,111180.0,111170.0,5.82381546]
[1747969216322,0.06414779,111180.0,111170.0,5.82381546]
[1747969216529,0.07314197,111180.0,111170.0,5.82381546]
[1747969216938,0.06414779,111180.0,111170.0,5.82381546]
[1747969217800,0.05515378,111180.0,111170.0,5.82381546]
[1747969217931,0.04616001,111180.0,111170.0,5.82381546]
[1747969218447,0.05515378,111180.0,111170.0,5.82381546]
[1747969218836,0.04616001,111180.0,111170.0,5.82381546]
[1747969219509,0.0444,111180.0,111170.0,5.82381546]
[1747969219670,0.05339377,111180.0,111170.0,5.82381546]
[1747969220084,0.05339369,111180.0,111170.0,5.82381546]
[1747969220515,0.05339369,111180.0,111170.0,5.48381546]
[1747969221368,0.06238746,111180.0,111170.0,5.48381546]
[1747969222211,0.06238746,111180.0,111170.0,5.45510026]
[1747969223769,0.05339369,111180.0,111170.0,5.45510026]
[1747969223976,0.06238754,111180.0,111170.0,5.45510026]
[1747969224815,0.07138155,111180.0,111170.0,5.45606026]
[1747969225025,0.06238754,111180.0,111170.0,5.45606026]
[1747969225654,0.07138147,111180.0,111170.0,5.45606026]
[1747969225865,0.0893699,111180.0,111170.0,4.76038026]
[1747969226066,0.0893699,111180.0,111170.0,5.45606026]
[1747969226267,0.08936982,111180.0,111170.0,5.45606026]
[1747969226471,0.08936974,111180.0,111170.0,5.45606026]
[1747969227108,0.08926956,111180.0,111170.0,5.45606026]
[1747969227502,0.07128169,111180.0,111170.0,5.45606026]
[1747969227836,0.08027595,111180.0,111170.0,5.45606026]
[1747969228310,0.07128169,111180.0,111170.0,5.45606026]
[1747969228516,0.08027595,111180.0,111170.0,5.45606026]
[1747969229784,0.07128169,111180.0,111170.0,5.45606026]
[1747969229975,0.08027595,111180.0,111170.0,5.45606026]
[1747969230171,0.07128169,111180.0,111170.0,5.45606026]
[1747969231630,0.07128169,111180.0,111170.0,5.45701026]
[1747969232084,0.07128169,111180.0,111170.0,5.48572546]
[1747969232725,0.07128169,111180.0,111170.0,4.79004546]
[1747969232947,0.07128169,111180.0,111170.0,5.48568546]
[1747969234703,0.07128169,111180.0,111170.0,5.79871146]
[1747969235908,0.0622876,111180.0,111170.0,5.79871146]
[1747969239365,0.07128169,111180.0,111170.0,5.79871146]
[1747969239803,0.04429982,111180.0,111170.0,5.79871146]
[1747969240018,0.01189982,111180.0,111170.0,5.79871146]
[1747969241710,0.02089359,111180.0,111170.0,5.79871146]
[1747969241944,0.01189982,111180.0,111170.0,5.79871146]
[1747969242155,0.02089351,111180.0,111170.0,5.79871146]
[1747969242366,0.02988736,111180.0,111170.0,5.79871146]
[1747969242574,0.01189982,111180.0,111170.0,5.79871146]
[1747969242779,0.02089351,111180.0,111170.0,5.79871146]
[1747969243161,0.01189982,111180.0,111170.0,5.79871146]
[1747969243364,0.01189982,111180.0,111170.0,5.90425702]
[1747969243587,0.01189982,111180.0,111170.0,5.92165702]
[1747969243798,0.05188471,111200.0,111190.0,0.54685215]
[1747969243950,0.06101433,111200.0,111190.0,4.92076964]
[1747969244739,0.07000705,111200.0,111190.0,4.92076964]
[1747969244971,0.04302962,111200.0,111190.0,4.92076964]
[1747969245369,0.00912962,111200.0,111190.0,5.0103152]
[1747969245576,0.00013747,111200.0,111190.0,5.0103152]
[1747969246723,0.00113747,111200.0,111190.0,5.0103152]
[1747969247131,0.00013747,111200.0,111190.0,5.0278152]
[1747969247350,0.0091297,111200.0,111190.0,4.93584371]
[1747969247524,0.00013747,111200.0,111190.0,4.96481171]
[1747969247944,0.05252202,111200.0,111190.0,4.93784371]
[1747969248091,0.23237894,111200.0,111190.0,4.371926]
[1747969248317,0.23237894,111200.0,111190.0,5.15620751]
[1747969248474,0.23237894,111200.0,111190.0,1.85392151]
[1747969248677,0.47221819,111200.0,111190.0,1.3833]
[1747969248882,0.47221819,111200.0,111190.0,1.31396]
[1747969249099,0.47221819,111200.0,111190.0,0.69476]
[1747969249314,0.33646535,111200.0,111190.0,0.69476]
[1747969249516,0.33646535,111200.0,111190.0,0.002]
[1747969249746,0.24691979,111200.0,111190.0,4.726686]
[1747969249980,0.24691979,111200.0,111190.0,4.81420751]
[1747969250383,0.24691979,111200.0,111190.0,4.82496575]
[1747969250796,0.24791979,111200.0,111190.0,4.82496575]
[1747969251451,0.24791979,111200.0,111190.0,4.82500575]
[1747969251814,0.24791979,111200.0,111190.0,4.13020575]
[1747969252027,0.24791979,111200.0,111190.0,4.82500575]
[1747969255238,0.24791979,111200.0,111190.0,4.82859183]
[1747969259251,0.24782986,111200.0,111190.0,4.82859183]
[1747969260009,0.24782986,111200.0,111190.0,0.79866583]
[1747969260214,0.24782986,111200.0,111190.0,4.62752683]
[1747969262388,0.24782986,111200.0,111190.0,4.62394126]
[1747969263671,0.24782986,111200.0,111190.0,5.01202126]
[1747969265556,0.23328901,111200.0,111190.0,5.01202126]
[1747969271324,0.23328901,111200.0,111190.0,5.00126251]
[1747969271498,0.23328901,111200.0,111190.0,5.01560683]
[1747969278374,0.33737542,111200.0,111190.0,4.65656532]
[1747969278603,0.33737542,111200.0,111190.0,4.92608532]
[1747969278604,0.47312826,111200.0,111190.0,4.92608532]
[1747969278807,0.33737542,111200.0,111190.0,4.92608532]
[1747969281829,0.33737542,111200.0,111190.0,4.92598514]
[1747969282635,0.33737542,111200.0,111190.0,5.26598514]
[1747969283131,0.33737542,111200.0,111190.0,5.31363673]
[1747969286524,0.33737542,111200.0,111190.0,5.26598514]
[1747969290594,0.21638901,111200.0,111190.0,5.26598514]
[1747969290803,0.19888901,111200.0,111190.0,5.26598514]
[1747969291877,0.21508901,111200.0,111190.0,5.26598514]
[1747969292120,0.23238901,111200.0,111190.0,5.26598514]
[1747969292341,0.23238901,111200.0,111190.0,5.35550665]
[1747969301918,0.23238901,111200.0,111190.0,5.34116233]
[1747969306084,0.23238901,111200.0,111190.0,5.52103462]
[1747969306283,0.19888901,111200.0,111190.0,5.53002815]
[1747969306502,0.19888901,111200.0,111190.0,5.34116233]
[1747969306503,0.18989645,111200.0,111190.0,5.34116233]
[1747969311577,0.22349645,111200.0,111190.0,5.34116233]
[1747969316038,0.0100401,111200.0,111190.0,4.83532841]
[1747969316261,0.00104754,111200.0,111190.0,5.58946827]
[1747969316457,0.00104754,111200.0,111190.0,5.70598283]
[1747969317247,4.754e-05,111200.0,111190.0,5.70598283]
[1747969317487,0.00903969,111200.0,111190.0,5.70598283]
[1747969317691,0.00903969,111200.0,111190.0,5.70698283]
[1747969318056,0.00903969,111200.0,111190.0,5.70898283]
[1747969318665,0.01803201,111200.0,111190.0,5.70898283]
[1747969319087,0.01589702,111200.0,111190.0,5.73767538]
[1747969319516,0.19782494,111210.0,111200.0,0.21544115]
[1747969319670,0.19782494,111210.0,111200.0,4.13382366]
[1747969320048,0.19782494,111210.0,111200.0,4.10723126]
[1747969320267,0.19782494,111210.0,111200.0,4.1252163]
[1747969320480,0.19782494,111210.0,111200.0,4.11622406]
[1747969320747,0.01798374,111210.0,111200.0,4.13420894]
[1747969320962,0.01798374,111210.0,111200.0,4.16810894]
[1747969321372,0.01798374,111210.0,111200.0,4.16910894]
[1747969322398,0.02697509,111210.0,111200.0,4.17810117]
[1747969322626,0.01798326,111210.0,111200.0,4.17910117]
[1747969322804,0.02697509,111210.0,111200.0,4.17810117]
[1747969323006,0.01798269,111210.0,111200.0,4.16011532]
[1747969323325,0.02697428,111210.0,111200.0,4.50211532]
[1747969323524,0.2159846,111230.0,111220.0,0.53780589]
[1747969323525,0.1994846,111230.0,111220.0,0.53780589]
[1747969323742,0.1818846,111230.0,111220.0,5.12341959]
[1747969324132,0.1818846,111230.0,111220.0,5.13241061]
[1747969324345,0.002,111230.0,111220.0,5.27589159]
[1747969324557,0.002,111230.0,111220.0,5.30879159]
[1747969324748,0.004,111230.0,111220.0,5.30879159]
[1747969324949,0.03097072,111230.0,111220.0,5.30879175]
[1747969325192,0.03097072,111230.0,111220.0,5.30879135]
[1747969325396,0.03097072,111230.0,111220.0,5.29219135]
[1747969325805,0.21177832,111230.0,111220.0,5.25790987]
[1747969326004,0.20977832,111230.0,111220.0,5.25790987]
[1747969326371,0.19978827,111230.0,111220.0,5.25890987]
[1747969326576,0.19978827,111230.0,111220.0,5.26190987]
[1747969326754,0.19978827,111230.0,111220.0,5.27522309]
[1747969326964,0.19978827,111230.0,111220.0,5.28421387]
[1747969327295,0.19978827,111230.0,111220.0,5.28621387]
[1747969327965,0.01998034,111230.0,111220.0,5.29520449]
[1747969328169,0.01997986,111230.0,111220.0,5.31190449]
[1747969328461,0.02897007,111230.0,111220.0,5.31190449]
[1747969328767,0.03796045,111230.0,111220.0,5.31190449]
[1747969329320,0.03796045,111230.0,111220.0,5.69990449]
[1747969329681,0.02897007,111230.0,111220.0,5.68320449]
[1747969329885,0.03796036,111230.0,111220.0,5.68320449]
[1747969330091,0.04695074,111230.0,111220.0,5.68320449]
[1747969332382,0.03796036,111230.0,111220.0,5.68320449]
[1747969333537,0.21776796,111230.0,111220.0,5.66522309]
[1747969333686,0.02897007,111230.0,111220.0,5.68320441]
[1747969334508,0.01098981,111230.0,111220.0,5.68320441]
[1747969334739,0.01098973,111230.0,111220.0,5.70020441]
[1747969335276,0.0199797,111230.0,111220.0,5.70020441]
[1747969335686,0.002,111230.0,111220.0,5.70020441]
[1747969336543,0.002,111230.0,111220.0,5.68589119]
[1747969336751,0.002,111230.0,111220.0,5.70169119]
[1747969345868,0.002,111230.0,111220.0,5.73038374]
[1747969347122,0.002,111230.0,111220.0,5.69750374]
[1747969347383,0.002,111230.0,111220.0,5.71430374]
[1747969347520,0.002,111230.0,111220.0,5.73000374]
[1747969352628,0.002,111230.0,111220.0,5.70131119]
[1747969354609,0.002,111230.0,111220.0,6.06094119]
[1747969355904,0.002,111230.0,111220.0,6.07094119]
[1747969358870,0.002,111230.0,111220.0,6.45385769]
[1747969360123,0.002,111230.0,111220.0,6.2738556]
[1747969360375,0.05978811,111250.0,111240.0,0.20675917]